fUSD/lending_fUSD_20250530
["ID","MTS","AMOUNT","RATE_DAILY","PERIOD"]
[363131474,1748595045579,-420.0,0.00021917,2]
[363131476,1748595045589,-1481.21,0.00021917,2]
[363131478,1748595045599,-420.0,0.00021917,2]
[363131480,1748595045609,-449.4,0.00021917,2]
[363131482,1748595045619,-775.23,0.00021917,2]
[363131484,1748595045629,-420.0,0.00021917,2]
[363131486,1748595045639,-420.0,0.00021917,2]
[363131488,1748595045648,-420.0,0.00021917,2]
[363131491,1748595045658,-420.0,0.00021917,2]
[363131493,1748595045668,-517.72,0.00021917,2]
[363131495,1748595045678,-420.0,0.00021917,2]
[363131497,1748595045687,-420.0,0.00021917,2]
[363131499,1748595045697,-7296.93,0.00021917,2]
[363131501,1748595045707,-420.0,0.00021917,2]
[363131503,1748595045718,-420.0,0.00021917,2]
[363131505,1748595045728,-3040.94,0.00021917,2]
[363131506,1748595045737,-166.44,0.00021917,2]
[363131509,1748595045748,-500.0,0.00021917,2]
[363131511,1748595045760,-500.0,0.00021917,2]
[363131513,1748595045770,-1030.06,0.00021917,2]
[363131515,1748595045779,-1273.3,0.00021917,2]
[363131517,1748595045790,-420.0,0.00021917,2]
[363131519,1748595045800,-21483.75,0.00021917,2]
[363131521,1748595045810,-445.41,0.00021917,2]
[363131523,1748595045820,-1271.11,0.00021917,2]
[363131525,1748595045830,-500.0,0.00021917,2]
[363131527,1748595045840,-500.0,0.00021917,2]
[363131529,1748595045850,-438.53,0.00021917,2]
[363131531,1748595045859,-422.53767901,0.00021917,2]
[363131533,1748595045869,-1183.41,0.00021917,2]
[363131535,1748595045879,-420.0,0.00021917,2]
[363131537,1748595045889,-1285.36,0.00021917,2]
[363131539,1748595045899,-540.20194575,0.00021917,2]
[363131542,1748595045910,-420.0,0.00021917,2]
[363131544,1748595045921,-1795.53,0.00021917,2]
[363131546,1748595045931,-4044.59,0.00021917,2]
[363131548,1748595045941,-420.0,0.00021917,2]
[363131550,1748595045951,-644.91,0.00021917,2]
[363131552,1748595045961,-1474.1,0.00021917,2]
[363131554,1748595045971,-2802.17,0.00021917,2]
[363131556,1748595045981,-889.57,0.00021917,2]
[363131558,1748595045991,-420.0,0.00021917,2]
[363131560,1748595046000,-1159.0,0.00021917,2]
[363131562,1748595046010,-420.0,0.00021917,2]
[363131565,1748595046021,-3115.06,0.00021917,2]
[363131567,1748595046031,-1089.14,0.00021917,2]
[363131569,1748595046041,-420.0,0.00021917,2]
[363131571,1748595046051,-420.0,0.00021917,2]
[363131573,1748595046061,-500.0,0.00021917,2]
[363131575,1748595046071,-420.0,0.00021917,2]
[363131577,1748595046081,-500.0,0.00021917,2]
[363131579,1748595046090,-590.77,0.00021917,2]
[363131581,1748595046100,-776.89,0.00021917,2]
[363131583,1748595046111,-420.0,0.00021917,2]
[363131585,1748595046122,-1078.66,0.00021917,2]
[363131587,1748595046132,-1441.62,0.00021917,2]
[363131589,1748595046142,-420.0,0.00021917,2]
[363131591,1748595046152,-420.0,0.00021917,2]
[363131594,1748595046162,-773.67,0.00021917,2]
[363131596,1748595046172,-818.48,0.00021917,2]
[363131598,1748595046182,-3348.76,0.00021917,2]
[363131600,1748595046192,-420.0,0.00021917,2]
[363131601,1748595046202,-1429.55,0.00021917,2]
[363131602,1748595046211,-985.33,0.00021917,2]
[363131603,1748595046222,-420.0,0.00021917,2]
[363131605,1748595046232,-420.0,0.00021917,2]
[363131607,1748595046242,-500.0,0.00021917,2]
[363131609,1748595046252,-420.0,0.00021917,2]
[363131610,1748595046262,-690.29,0.00021917,2]
[363131611,1748595046272,-1023.95,0.00021917,2]
[363131612,1748595046282,-420.0,0.00021917,2]
[363131613,1748595046292,-420.0,0.00021917,2]
[363131614,1748595046301,-202.37962199,0.00021917,2]
[363131615,1748595046311,-420.0,0.00021917,2]
[363131616,1748595046321,-4520.49,0.00021917,2]
[363131617,1748595046330,-500.0,0.00021917,2]
[363131618,1748595046342,-2218.05,0.00021917,2]
[363131619,1748595046352,-420.0,0.00021917,2]
[363131620,1748595046362,-420.0,0.00021917,2]
[363131621,1748595046373,-420.0,0.00021917,2]
[363131622,1748595046384,-559.75,0.00021917,2]
[363131623,1748595046395,-500.0,0.00021917,2]
[363131624,1748595046406,-1067.09,0.00021917,2]
[363131625,1748595046416,-3054.1,0.00021917,2]
[363131626,1748595046426,-3728.34,0.00021917,2]
[363131627,1748595046437,-420.0,0.00021917,2]
[363131628,1748595046450,-420.0,0.00021917,2]
[363131629,1748595046460,-271.72721888,0.00021917,2]
[363131630,1748595046471,-427.19,0.00021917,2]
[363131631,1748595046481,-420.0,0.00021917,2]
[363131632,1748595046491,-621.05,0.00021917,2]
[363131633,1748595046506,-1203.63,0.00021917,2]
[363131634,1748595046519,-420.0,0.00021917,2]
[363131635,1748595046530,-755.14,0.00021917,2]
[363131636,1748595046544,-420.0,0.00021917,2]
[363131637,1748595046554,-420.0,0.00021917,2]
[363131638,1748595046564,-420.0,0.00021917,2]
[363131639,1748595046575,-420.0,0.00021917,2]
[363131640,1748595046585,-504.41909689,0.00021917,2]
[363131641,1748595046595,-477.41,0.00021917,2]
[363131642,1748595046606,-431.13,0.00021917,2]
[363131643,1748595046616,-420.0,0.00021917,2]
[363131644,1748595046627,-420.0,0.00021917,2]
[363131645,1748595046638,-5972.3,0.00021917,2]
[363131646,1748595046648,-1184.62,0.00021917,2]
[363131647,1748595046658,-671.42,0.00021917,2]
[363131648,1748595046668,-634.13,0.00021917,2]
[363131649,1748595046678,-420.0,0.00021917,2]
[363131650,1748595046688,-500.0,0.00021917,2]
[363131651,1748595046699,-420.0,0.00021917,2]
[363131652,1748595046709,-420.0,0.00021917,2]
[363131653,1748595046719,-476.00454792,0.00021917,2]
[363131654,1748595046729,-502.03639381,0.00021917,2]
[363131655,1748595046739,-420.0,0.00021917,2]
[363131656,1748595046750,-541.62,0.00021917,2]
[363131657,1748595046760,-420.0,0.00021917,2]
[363131658,1748595046770,-420.0,0.00021917,2]
[363131659,1748595046780,-503.80554401,0.00021917,2]
[363131660,1748595046790,-420.0,0.00021917,2]
[363131661,1748595046800,-420.0,0.00021917,2]
[363131662,1748595046810,-420.0,0.00021917,2]
[363131663,1748595046820,-825.66,0.00021917,2]
[363131664,1748595046831,-1547.86,0.00021917,2]
[363131665,1748595046841,-420.0,0.00021917,2]
[363131666,1748595046853,-420.0,0.00021917,2]
[363131667,1748595046864,-2252.41,0.00021917,2]
[363131668,1748595046874,-1010.64,0.00021917,2]
[363131669,1748595046885,-11143.25,0.00021917,2]
[363131670,1748595046895,-420.0,0.00021917,2]
[363131671,1748595046905,-420.0,0.00021917,2]
[363131672,1748595046915,-420.0,0.00021917,2]
[363131673,1748595046925,-420.0,0.00021917,2]
[363131674,1748595046936,-1284.74,0.00021917,2]
[363131675,1748595046946,-1411.5,0.00021917,2]
[363131676,1748595046956,-420.0,0.00021917,2]
[363131677,1748595046967,-420.0,0.00021917,2]
[363131678,1748595046977,-2361.74,0.00021917,2]
[363131680,1748595046987,-420.0,0.00021917,2]
[363131681,1748595047000,-4994.61,0.00021917,2]
[363131682,1748595047011,-740.45,0.00021917,2]
[363131683,1748595047021,-1578.77,0.00021917,2]
[363131684,1748595047031,-420.0,0.00021917,2]
[363131685,1748595047041,-505.68514956,0.00021917,2]
[363131686,1748595047051,-420.0,0.00021917,2]
[363131687,1748595047063,-420.0,0.00021917,2]
[363131688,1748595047074,-727.44,0.00021917,2]
[363131689,1748595047085,-421.21367918,0.00021917,2]
[363131690,1748595047095,-420.0,0.00021917,2]
[363131691,1748595047109,-500.0,0.00021917,2]
[363131692,1748595047119,-2395.39,0.00021917,2]
[363131693,1748595047135,-420.0,0.00021917,2]
[363131694,1748595047145,-420.0,0.00021917,2]
[363131695,1748595047161,-420.0,0.00021917,2]
[363131696,1748595047172,-612.4,0.00021917,2]
[363131697,1748595047183,-420.0,0.00021917,2]
[363131698,1748595047193,-420.0,0.00021917,2]
[363131699,1748595047203,-420.0,0.00021917,2]
[363131700,1748595047212,-420.0,0.00021917,2]
[363131701,1748595047223,-1190.58,0.00021917,2]
[363131702,1748595047233,-420.0,0.00021917,2]
[363131703,1748595047243,-420.0,0.00021917,2]
[363131704,1748595047253,-500.0,0.00021918,2]
[363131705,1748595047263,-500.0,0.00021918,2]
[363131706,1748595047273,-500.0,0.00021918,2]
[363131707,1748595047283,-500.0,0.00021918,2]
[363131708,1748595047293,-500.0,0.00021918,2]
[363131709,1748595047303,-395.10147663,0.00021918,2]
[363131710,1748595047313,-15951.17136314,0.00021931,2]
[363131711,1748595047323,-167.27714452,0.00021945,2]
[363131712,1748595047333,-6303.98511981,0.00021947,2]
[363131713,1748595047343,-1143.99310481,0.00021953,2]
[363131714,1748595047365,-153.92442386,0.00021959,2]
[363131715,1748595047375,-500.0,0.00021973,2]
[363131716,1748595047386,-500.0,0.00021973,2]
[363131717,1748595047396,-527.84452092,0.00021973,2]
[363131718,1748595047406,-503.13693515,0.00021973,2]
[363131719,1748595047416,-164.95176813,0.00021973,2]
[363131720,1748595047427,-500.76877422,0.00021973,2]
[363131721,1748595047437,-500.0,0.00021973,2]
[363131722,1748595047688,-498.04109732,0.00021973,2]
[363131723,1748595047697,-159.55032542,0.00021973,2]
[363131724,1748595047707,-502.24751098,0.00021973,2]
[363131725,1748595047716,-159.57815874,0.00021973,2]
[363131726,1748595047726,-500.0,0.00021973,2]
[363131727,1748595047737,-160.30334547,0.00021973,2]
[363131728,1748595047746,-587.38219395,0.00021973,2]
[363131729,1748595047755,-159.56950675,0.00021973,2]
[363131730,1748595047765,-159.57919208,0.00021973,2]
[363131731,1748595047774,-501.36825752,0.00021973,2]
[363131732,1748595047783,-159.532442,0.00021973,2]
[363131733,1748595047793,-500.0,0.00021973,2]
[363131734,1748595047802,-208.63092654,0.00021973,2]
[363131735,1748595047812,-159.58238895,0.00021973,2]
[363131736,1748595047821,-500.0,0.00021973,2]
[363131737,1748595047831,-500.0,0.00021973,2]
[363131738,1748595047841,-500.0,0.00021973,2]
[363131739,1748595047852,-500.0,0.00021973,2]
[363131740,1748595047862,-500.0,0.00021973,2]
[363131741,1748595047871,-500.0,0.00021973,2]
[363131742,1748595047881,-500.0,0.00021973,2]
[363131743,1748595047891,-500.0,0.00021973,2]
[363131744,1748595047900,-365.61741876,0.00021973,2]
[363131745,1748595047910,-500.0,0.00021973,2]
[363131746,1748595047919,-500.0,0.00021973,2]
[363131747,1748595047929,-1266.492705,0.00021981,3]
[363131748,1748595047939,-15951.17136314,0.00021988,2]
[363131749,1748595047948,-176.47,0.00021999,2]
[363131750,1748595047958,-166.0,0.00022,2]
[363131751,1748595047967,-181.0,0.00022,2]
[363131752,1748595047977,-9283.41728027,0.00022,2]
[363131753,1748595047987,-203.74083013,0.00022012,2]
[363131754,1748595047996,-169.10817303,0.00022014,2]
[363131755,1748595048006,-989.27223219,0.00022014,2]
[363131756,1748595048016,-326.08,0.00022027,2]
[363131757,1748595048026,-420.0,0.00022053,2]
[363131758,1748595048037,-460.4,0.00022055,2]
[363131759,1748595048047,-8263.48252436,0.00022061,2]
[363131760,1748595048057,-587.38219395,0.00022082,2]
[363131761,1748595048067,-178.80191288,0.00022092,2]
[363131762,1748595048076,-847.15946128,0.00022101,2]
[363131763,1748595048086,-579.50301407,0.0002216,2]
[363131764,1748595048096,-167.27714452,0.00022164,2]
[363131765,1748595048106,-587.38219395,0.00022164,2]
[363131766,1748595048115,-500.0,0.00022173,2]
[363131767,1748595048126,-546.95711903,0.00022173,2]
[363131768,1748595048136,-500.0,0.00022173,2]
[363131769,1748595048147,-359.05901085,0.00022173,2]
[363131770,1748595048156,-500.0,0.00022173,2]
[363131771,1748595048167,-500.0,0.00022173,2]
[363131772,1748595048178,-500.0,0.00022173,2]
[363131773,1748595048189,-500.0,0.00022173,2]
[363131774,1748595048201,-500.0,0.00022173,2]
[363131775,1748595048212,-500.0,0.00022173,2]
[363131776,1748595048223,-500.0,0.00022173,2]
[363131777,1748595048233,-150.0,0.00022173,2]
[363131778,1748595048243,-167.42224185,0.0002219,2]
[363131779,1748595048254,-500.0,0.0002219,2]
[363131780,1748595048264,-500.0,0.0002219,2]
[363131781,1748595048274,-500.0,0.0002219,2]
[363131782,1748595048283,-197.59433205,0.0002219,2]
[363131783,1748595048294,-500.0,0.0002219,2]
[363131784,1748595048303,-500.0,0.0002219,2]
[363131785,1748595048314,-500.0,0.0002219,2]
[363131786,1748595048324,-500.0,0.0002219,2]
[363131787,1748595048334,-298.87698516,0.0002219,2]
[363131788,1748595048344,-310.28425939,0.0002219,2]
[363131789,1748595048355,-151.0,0.00022191,7]
[363131790,1748595048364,-155.221073,0.00022191,7]
[363131791,1748595048374,-420.0,0.00022191,2]
[363131792,1748595048384,-420.0,0.00022191,2]
[363131793,1748595048394,-586.06,0.00022191,2]
[363131794,1748595048404,-460.79504359,0.00022191,2]
[363131795,1748595048415,-799.47,0.00022191,2]
[363131796,1748595048425,-520.62,0.00022191,2]
[363131797,1748595048435,-508.19,0.00022191,2]
[363131798,1748595048445,-420.0,0.00022191,2]
[363131799,1748595048454,-420.0,0.00022191,2]
[363131800,1748595048464,-420.0,0.00022191,2]
[363131801,1748595048474,-446.66,0.00022191,2]
[363131802,1748595048484,-160.0,0.00022191,2]
[363131803,1748595048496,-160.0,0.00022191,2]
[363131804,1748595048507,-160.0,0.00022191,2]
[363131805,1748595048518,-690.7,0.00022191,2]
[363131806,1748595048528,-420.0,0.00022191,2]
[363131807,1748595048538,-420.0,0.00022191,2]
[363131808,1748595048549,-420.0,0.00022191,2]
[363131809,1748595048559,-420.0,0.00022191,2]
[363131810,1748595048570,-420.0,0.00022191,2]
[363131811,1748595048580,-420.0,0.00022191,2]
[363131812,1748595048590,-420.0,0.00022191,2]
[363131813,1748595048602,-491.08053124,0.00022191,2]
[363131814,1748595048611,-211.13,0.00022191,2]
[363131815,1748595048621,-160.0,0.00022191,2]
[363131816,1748595048631,-676.54,0.00022191,2]
[363131817,1748595048640,-420.0,0.00022191,2]
[363131818,1748595048651,-434.43,0.00022191,2]
[363131819,1748595048661,-420.0,0.00022191,2]
[363131820,1748595048670,-261.91502367,0.00022191,2]
[363131821,1748595048679,-420.0,0.00022191,2]
[363131822,1748595048688,-420.0,0.00022191,2]
[363131823,1748595048698,-420.0,0.00022191,2]
[363131824,1748595048707,-1193.98,0.00022191,2]
[363131825,1748595048717,-628.44,0.00022191,2]
[363131826,1748595048727,-151.0,0.00022191,7]
[363131827,1748595048737,-420.0,0.00022191,2]
[363131828,1748595048747,-420.0,0.00022191,2]
[363131829,1748595048756,-420.0,0.00022191,2]
[363131830,1748595048766,-151.0,0.00022191,7]
[363131831,1748595048775,-420.0,0.00022191,2]
[363131832,1748595048785,-420.0,0.00022191,2]
[363131833,1748595048795,-281.85046119,0.00022191,2]
[363131834,1748595048805,-420.0,0.00022191,2]
[363131835,1748595048815,-160.0,0.00022191,2]
[363131836,1748595048825,-391.09081236,0.00022191,2]
[363131837,1748595048835,-420.0,0.00022191,2]
[363131838,1748595048846,-420.0,0.00022191,2]
[363131839,1748595048858,-420.0,0.00022191,2]
[363131840,1748595048870,-464.9,0.00022191,2]
[363131841,1748595048880,-420.0,0.00022191,2]
[363131842,1748595048890,-155.852723,0.00022191,7]
[363131843,1748595048901,-420.0,0.00022191,2]
[363131844,1748595048910,-275.77848789,0.00022191,2]
[363131845,1748595048920,-420.0,0.00022191,2]
[363131846,1748595048931,-280.66627612,0.00022191,2]
[363131847,1748595048941,-420.0,0.00022191,2]
[363131848,1748595048951,-420.0,0.00022191,2]
[363131849,1748595048960,-523.5,0.00022191,2]
[363131850,1748595048971,-420.0,0.00022191,2]
[363131851,1748595048981,-522.7,0.00022191,2]
[363131852,1748595048991,-160.0,0.00022191,2]
[363131853,1748595049001,-586.95,0.00022191,2]
[363131854,1748595049011,-160.0,0.00022191,2]
[363131855,1748595049021,-420.0,0.00022191,2]
[363131856,1748595049031,-598.37,0.00022191,2]
[363131857,1748595049041,-539.63260274,0.00022191,2]
[363131858,1748595049050,-420.0,0.00022191,2]
[363131859,1748595049060,-420.0,0.00022191,2]
[363131860,1748595049070,-420.0,0.00022191,2]
[363131861,1748595049079,-420.0,0.00022191,2]
[363131862,1748595049088,-420.0,0.00022191,2]
[363131863,1748595049098,-420.0,0.00022191,2]
[363131864,1748595049108,-470.65412982,0.00022191,2]
[363131865,1748595049118,-436.16,0.00022191,2]
[363131866,1748595049128,-540.36,0.00022191,2]
[363131867,1748595049138,-420.0,0.00022191,2]
[363131868,1748595049148,-420.0,0.00022191,2]
[363131869,1748595049158,-500.0,0.00022191,2]
[363131870,1748595049167,-500.0,0.00022191,2]
[363131871,1748595049177,-502.76986875,0.00022191,2]
[363131872,1748595049187,-551.07,0.00022191,2]
[363131873,1748595049196,-420.0,0.00022191,2]
[363131874,1748595049206,-800.23,0.00022191,2]
[363131875,1748595049216,-554.91,0.00022191,2]
[363131876,1748595049226,-488.40666228,0.00022191,2]
[363131877,1748595049235,-420.0,0.00022191,2]
[363131878,1748595049245,-420.0,0.00022191,2]
[363131879,1748595049255,-500.0,0.00022191,2]
[363131880,1748595049264,-736.58,0.00022191,2]
[363131881,1748595049274,-570.88,0.00022191,2]
[363131882,1748595049284,-420.0,0.00022191,2]
[363131883,1748595049294,-420.0,0.00022191,2]
[363131884,1748595049304,-451.07276102,0.00022191,2]
[363131885,1748595049314,-420.0,0.00022191,2]
[363131886,1748595049323,-557.73,0.00022191,2]
[363131887,1748595049332,-1614.41,0.00022191,2]
[363131888,1748595049341,-420.0,0.00022191,2]
[363131889,1748595049351,-420.0,0.00022191,2]
[363131890,1748595049361,-710.4,0.00022191,2]
[363131891,1748595049371,-475.28904929,0.00022191,2]
[363131892,1748595049381,-152.493386,0.00022191,7]
[363131893,1748595049391,-420.0,0.00022191,2]
[363131894,1748595049401,-420.0,0.00022191,2]
[363131895,1748595049413,-420.0,0.00022191,2]
[363131896,1748595049423,-160.0,0.00022191,2]
[363131897,1748595049432,-420.0,0.00022191,2]
[363131898,1748595049442,-1032.45,0.00022191,2]
[363131899,1748595049451,-420.0,0.00022191,2]
[363131900,1748595049461,-872.27,0.00022191,2]
[363131901,1748595049471,-471.7,0.00022191,2]
[363131902,1748595049481,-1339.52,0.00022191,2]
[363131903,1748595049492,-151.0,0.00022191,7]
[363131904,1748595049504,-420.0,0.00022191,2]
[363131905,1748595049513,-420.0,0.00022191,2]
[363131906,1748595049523,-420.0,0.00022191,2]
[363131907,1748595049532,-740.74,0.00022191,2]
[363131908,1748595049542,-420.0,0.00022191,2]
[363131909,1748595049553,-469.8,0.00022191,2]
[363131910,1748595049562,-420.0,0.00022191,2]
[363131911,1748595049572,-848.69,0.00022191,2]
[363131912,1748595049583,-420.0,0.00022191,2]
[363131913,1748595049592,-1081.79,0.00022191,2]
[363131914,1748595049602,-1626.93,0.00022191,2]
[363131915,1748595049611,-420.0,0.00022191,2]
[363131916,1748595049621,-1415.9,0.00022191,2]
[363131917,1748595049630,-420.0,0.00022191,2]
[363131918,1748595049639,-1143.6,0.00022191,2]
[363131919,1748595049649,-420.0,0.00022191,2]
[363131920,1748595049659,-1615.91,0.00022191,2]
[363131921,1748595049671,-917.29,0.00022191,2]
[363131922,1748595049680,-420.0,0.00022191,2]
[363131923,1748595049690,-420.0,0.00022191,2]
[363131924,1748595049699,-500.0,0.00022191,2]
[363131925,1748595049709,-224.72883578,0.00022191,2]
[363131926,1748595049718,-420.0,0.00022191,2]
[363131927,1748595049727,-1839.83,0.00022191,2]
[363131928,1748595049737,-420.0,0.00022191,2]
[363131929,1748595049746,-420.0,0.00022191,2]
[363131930,1748595049756,-515.83,0.00022191,2]
[363131931,1748595049765,-151.0,0.00022191,7]
[363131932,1748595049775,-667.45,0.00022191,2]
[363131933,1748595049784,-420.0,0.00022191,2]
[363131934,1748595049793,-420.0,0.00022191,2]
[363131935,1748595049802,-420.0,0.00022191,2]
[363131936,1748595049811,-420.0,0.00022191,2]
[363131937,1748595049820,-420.0,0.00022191,2]
[363131938,1748595049830,-420.0,0.00022191,2]
[363131939,1748595049839,-420.0,0.00022191,2]
[363131940,1748595049848,-1980.22,0.00022191,2]
[363131941,1748595049857,-151.0,0.00022191,7]
[363131942,1748595049868,-617.71,0.00022191,2]
[363131943,1748595049877,-420.0,0.00022191,2]
[363131944,1748595049887,-151.0,0.00022191,7]
[363131945,1748595049896,-420.0,0.00022191,2]
[363131946,1748595049905,-151.0,0.00022191,7]
[363131947,1748595049914,-420.0,0.00022191,2]
[363131948,1748595049924,-420.0,0.00022191,2]
[363131949,1748595049934,-1601.11,0.00022191,2]
[363131950,1748595049944,-1118.03,0.00022191,2]
[363131951,1748595049953,-1570.87,0.00022191,2]
[363131952,1748595049963,-420.0,0.00022191,2]
[363131953,1748595049973,-420.0,0.00022191,2]
[363131954,1748595049983,-420.0,0.00022191,2]
[363131955,1748595049992,-468.07,0.00022191,2]
[363131956,1748595050002,-164.17552617,0.00022191,2]
[363131957,1748595050011,-560.56913432,0.00022191,2]
[363131958,1748595050020,-450.96,0.00022191,2]
[363131959,1748595050029,-1423.4,0.00022191,2]
[363131960,1748595050039,-644.63,0.00022191,2]
[363131961,1748595050117,-420.0,0.00022191,2]
[363131962,1748595050128,-762.5,0.00022191,2]
[363131963,1748595050138,-420.0,0.00022191,2]
[363131964,1748595050147,-717.64,0.00022191,2]
[363131965,1748595050157,-765.25,0.00022191,2]
[363131966,1748595050167,-497.72,0.00022191,2]
[363131967,1748595050176,-420.0,0.00022191,2]
[363131968,1748595050185,-654.14,0.00022191,2]
[363131969,1748595050195,-321.08700687,0.00022191,2]
[363131970,1748595050204,-420.0,0.00022191,2]
[363131971,1748595050213,-420.0,0.00022191,2]
[363131972,1748595050222,-234.07,0.00022191,2]
[363131973,1748595050231,-420.0,0.00022191,2]
[363131974,1748595050240,-420.0,0.00022191,2]
[363131975,1748595050249,-1119.86,0.00022191,2]
[363131976,1748595050258,-420.0,0.00022191,2]
[363131977,1748595050267,-951.56,0.00022191,2]
[363131978,1748595050276,-1258.39,0.00022191,2]
[363131979,1748595050285,-420.0,0.00022191,2]
[363131980,1748595050295,-826.81,0.00022191,2]
[363131981,1748595050303,-420.0,0.00022191,2]
[363131982,1748595050313,-420.0,0.00022191,2]
[363131983,1748595050322,-765.69,0.00022191,2]
[363131984,1748595050331,-629.43,0.00022191,2]
[363131985,1748595050340,-160.0,0.00022191,2]
[363131986,1748595050350,-420.0,0.00022191,2]
[363131987,1748595050360,-729.08,0.00022191,2]
[363131988,1748595050369,-856.89,0.00022191,2]
[363131989,1748595050378,-1655.796379,0.00022191,2]
[363131990,1748595050388,-165.639435,0.00022191,7]
[363131991,1748595050397,-1428.318643,0.00022191,2]
[363131992,1748595050406,-420.0,0.00022191,2]
[363131993,1748595050415,-800.9,0.00022191,2]
[363131994,1748595050425,-151.0,0.00022191,7]
[363131995,1748595050435,-167.03626169,0.00022191,2]
[363131996,1748595050444,-151.0,0.00022191,7]
[363131997,1748595050454,-2521.48,0.00022191,2]
[363131998,1748595050464,-624.3,0.00022191,2]
[363131999,1748595050473,-420.0,0.00022191,2]
[363132000,1748595050482,-676.43,0.00022191,2]
[363132001,1748595050491,-455.36,0.00022191,2]
[363132002,1748595050505,-420.0,0.00022191,2]
[363132003,1748595050513,-1501.32,0.00022191,2]
[363132004,1748595050523,-1979.7,0.00022191,2]
[363132005,1748595050532,-420.0,0.00022191,2]
[363132006,1748595050541,-420.0,0.00022191,2]
[363132007,1748595050550,-575.87,0.00022191,2]
[363132008,1748595050559,-784.13,0.00022191,2]
[363132009,1748595050569,-1973.1,0.00022191,2]
[363132010,1748595050580,-706.99,0.00022191,2]
[363132011,1748595050591,-1055.66,0.00022191,2]
[363132012,1748595050603,-420.0,0.00022191,2]
[363132013,1748595050613,-160.0,0.00022191,2]
[363132014,1748595050623,-546.17,0.00022191,2]
[363132015,1748595050633,-420.0,0.00022191,2]
[363132016,1748595050644,-491.71,0.00022191,2]
[363132017,1748595050654,-567.72,0.00022191,2]
[363132018,1748595050664,-595.78,0.00022191,2]
[363132019,1748595050674,-631.25,0.00022191,2]
[363132020,1748595050685,-220.34,0.00022191,2]
[363132021,1748595050695,-1248.77,0.00022191,2]
[363132022,1748595050704,-964.56,0.00022191,2]
[363132023,1748595050713,-420.0,0.00022191,2]
[363132024,1748595050722,-388.97871371,0.00022191,2]
[363132025,1748595050731,-502.61,0.00022191,2]
[363132026,1748595050740,-420.0,0.00022191,2]
[363132027,1748595050749,-653.49,0.00022191,2]
[363132028,1748595050758,-912.53,0.00022191,2]
[363132029,1748595050767,-420.0,0.00022191,2]
[363132030,1748595050776,-497.79,0.00022191,2]
[363132031,1748595050785,-646.81,0.00022191,2]
[363132032,1748595050795,-2028.31,0.00022191,2]
[363132033,1748595050804,-151.0,0.00022191,7]
[363132034,1748595050813,-1287.15,0.00022191,2]
[363132035,1748595050823,-151.0,0.00022191,7]
[363132036,1748595050832,-881.82,0.00022191,2]
[363132037,1748595050842,-151.0,0.00022191,7]
[363132038,1748595050851,-420.0,0.00022191,2]
[363132039,1748595050860,-420.0,0.00022191,2]
[363132040,1748595050870,-1438.11,0.00022191,2]
[363132041,1748595050879,-847.99,0.00022191,2]
[363132042,1748595050889,-420.0,0.00022191,2]